bitfinex/quotes_BTCUSD_20241222
["timestamp","ask_amount","ask_price","bid_price","bid_amount"]
[1734849036452,1.0724646,96551.0,96529.0,0.000171]
[1734849037039,1.0694646,96551.0,96529.0,0.000171]
[1734849037370,1.0654646,96551.0,96529.0,0.000171]
[1734849038339,1.0724646,96551.0,96529.0,0.000171]
[1734849038544,1.07597324,96551.0,96529.0,0.000171]
[1734849038929,1.08297324,96551.0,96529.0,0.000171]
[1734849039136,1.07597324,96551.0,96529.0,0.000171]
[1734849039333,1.07297324,96551.0,96529.0,0.000171]
[1734849039742,1.07597324,96551.0,96529.0,0.000171]
[1734849040127,1.07297324,96551.0,96529.0,0.000171]
[1734849040532,0.37226369,96551.0,96542.0,0.075]
[1734849040735,0.55079194,96551.0,96545.0,0.207155]
[1734849041004,0.55079194,96551.0,96547.0,0.207152]
[1734849041206,0.55479194,96551.0,96547.0,0.207152]
[1734849041431,0.54779194,96551.0,96547.0,0.207152]
[1734849041911,0.55279194,96551.0,96547.0,0.207152]
[1734849042130,0.0194076,96551.0,96547.0,0.207152]
[1734849042454,0.0204076,96551.0,96547.0,0.207152]
[1734849042660,0.001,96551.0,96550.0,0.075171]
[1734849043297,0.004,96551.0,96550.0,0.20770663]
[1734849043499,0.004,96551.0,96550.0,0.206671]
[1734849043703,0.001,96551.0,96550.0,0.206671]
[1734849044128,0.00012369,96561.0,96550.0,0.208671]
[1734849044332,0.00012369,96561.0,96558.0,0.207127]
[1734849045203,0.00012369,96561.0,96550.0,0.079171]
[1734849045489,0.207125,96560.0,96550.0,0.003171]
[1734849045857,0.0194076,96559.0,96558.0,0.001]
[1734849046047,0.0194076,96559.0,96550.0,0.003171]
[1734849046241,0.0194076,96558.0,96550.0,0.000171]
[1734849046849,0.0194076,96557.0,96550.0,0.000171]
[1734849047045,0.4336696,96557.0,96550.0,0.000171]
[1734849047231,0.207135,96555.0,96550.0,0.000171]
[1734849047641,0.0194076,96554.0,96550.0,0.000171]
[1734849048052,0.0194076,96553.0,96550.0,0.000171]
[1734849048246,0.0194076,96552.0,96550.0,0.000171]
[1734849049040,0.0194076,96551.0,96550.0,0.000171]
[1734849050267,0.0194076,96551.0,96550.0,0.075171]
[1734849051015,0.0194076,96553.0,96550.0,0.075171]
[1734849051218,0.0194076,96553.0,96550.0,0.076171]
[1734849051503,0.0194076,96552.0,96550.0,0.076171]
[1734849051834,0.0194076,96552.0,96550.0,0.075171]
[1734849052048,0.0194076,96551.0,96550.0,0.000171]
[1734849053231,0.0194076,96551.0,96550.0,0.001171]
[1734849053797,0.0194076,96551.0,96550.0,0.000171]
[1734849054419,0.0194076,96551.0,96550.0,0.001171]
[1734849054960,0.0194076,96551.0,96550.0,0.000171]
[1734849056577,0.0194076,96551.0,96550.0,0.001171]
[1734849060776,0.0194076,96551.0,96550.0,0.000171]
[1734849061187,0.0194076,96551.0,96550.0,0.001171]
[1734849063124,0.0194076,96551.0,96550.0,0.000171]
[1734849063562,0.0194076,96551.0,96550.0,0.001171]
[1734849063781,0.09272507,96555.0,96550.0,0.001171]
[1734849063975,0.01937586,96551.0,96550.0,0.001171]
[1734849064913,0.01937586,96551.0,96550.0,0.000171]
[1734849066777,0.01937586,96551.0,96550.0,0.001171]
[1734849073132,0.15846347,96551.0,96550.0,0.001171]
[1734849074571,0.29777187,96551.0,96550.0,0.001171]
[1734849075437,0.73420443,96551.0,96550.0,0.001171]
[1734849075629,0.73620443,96551.0,96550.0,0.000171]
[1734849075913,0.73720443,96551.0,96550.0,0.000171]
[1734849076319,0.88620443,96551.0,96550.0,0.000171]
[1734849076521,0.89661495,96551.0,96550.0,0.000171]
[1734849076731,0.89761495,96551.0,96550.0,0.000171]
[1734849076927,0.76361751,96551.0,96550.0,0.000171]
[1734849077351,0.76561751,96551.0,96550.0,0.000171]
[1734849077563,0.76361751,96551.0,96550.0,0.000171]
[1734849077734,0.76761751,96551.0,96550.0,0.000171]
[1734849078276,0.76361751,96551.0,96550.0,0.000171]
[1734849078419,0.76761751,96551.0,96550.0,0.000171]
[1734849078807,0.414326,96542.0,96529.0,0.000171]
[1734849079007,0.1243084,96541.0,96529.0,0.000171]
[1734849079407,0.207182,96534.0,96529.0,0.000171]
[1734849079909,0.01937586,96533.0,96529.0,0.000171]
[1734849080378,0.01937586,96532.0,96529.0,0.000171]
[1734849080812,0.01937586,96531.0,96529.0,0.000171]
[1734849081513,0.01937586,96530.0,96529.0,0.000171]
[1734849083386,0.01937586,96530.0,96529.0,0.001171]
[1734849091971,0.12068426,96530.0,96529.0,0.001171]
[1734849092134,0.48418426,96530.0,96529.0,0.001171]
[1734849092464,0.50484192,96530.0,96529.0,0.001171]
[1734849092605,0.55374192,96530.0,96529.0,0.001171]
[1734849093346,0.53874192,96530.0,96529.0,0.001171]
[1734849093543,0.53874192,96530.0,96529.0,0.000171]
[1734849093544,1.10076317,96530.0,96529.0,0.000171]
[1734849094146,0.15,96524.0,96516.0,0.0828]
[1734849094658,0.01937586,96523.0,96516.0,0.0828]
[1734849094860,0.207208,96521.0,96516.0,0.0828]
[1734849095760,0.11235431,96520.0,96516.0,0.0828]
[1734849096094,0.01937586,96519.0,96516.0,0.0828]
[1734849096673,0.01937586,96518.0,96516.0,0.0828]
[1734849097243,0.01937586,96517.0,96516.0,0.0828]
[1734849097974,0.01937586,96517.0,96510.0,0.0751]
[1734849098182,0.207213,96519.0,96510.0,0.0751]
[1734849098183,0.01937586,96516.0,96510.0,0.0751]
[1734849098897,0.01937586,96515.0,96510.0,0.0751]
[1734849099081,0.01937586,96514.0,96510.0,0.0751]
[1734849099479,0.01937586,96513.0,96510.0,0.0751]
[1734849099832,0.01937586,96513.0,96510.0,0.0761]
[1734849100218,0.01937586,96512.0,96510.0,0.0761]
[1734849100562,0.01937586,96511.0,96510.0,0.0761]
[1734849101200,0.01937586,96511.0,96510.0,0.0751]
[1734849101411,0.01937586,96511.0,96510.0,0.0761]
[1734849102004,0.01937586,96511.0,96510.0,0.0751]
[1734849102210,0.01937586,96511.0,96510.0,0.0771]
[1734849102989,0.01937586,96511.0,96510.0,0.002]
[1734849107306,0.01937586,96511.0,96504.0,0.0751]
[1734849107744,0.414426,96519.0,96510.0,0.001]
[1734849108229,0.414426,96519.0,96504.0,0.0751]
[1734849108426,0.01939278,96518.0,96510.0,0.001]
[1734849108640,0.0779,96517.0,96510.0,0.001]
[1734849108927,0.01939278,96516.0,96498.0,0.085]
[1734849109144,0.207221,96515.0,96497.0,0.00103617]
[1734849109570,0.207225,96513.0,96497.0,0.00103617]
[1734849109946,0.01939278,96512.0,96497.0,0.00103617]
[1734849110153,0.01939278,96512.0,96497.0,0.08603617]
[1734849110357,0.01939278,96511.0,96497.0,0.085]
[1734849110658,0.207232,96510.0,96497.0,0.085]
[1734849111079,0.22662478,96510.0,96497.0,0.085]
[1734849111838,0.22662478,96510.0,96509.0,0.0011712]
[1734849111974,0.22662478,96510.0,96509.0,0.0001712]
[1734849112470,0.22662478,96510.0,96509.0,0.0021712]
[1734849113407,0.01939278,96510.0,96509.0,0.0021712]
[1734849113640,0.01939278,96510.0,96509.0,0.0001712]
[1734849114035,0.01939278,96510.0,96509.0,0.0770712]
[1734849114729,0.01939278,96510.0,96509.0,0.0760712]
[1734849115458,0.01939278,96510.0,96509.0,0.0770712]
[1734849117462,0.01939278,96510.0,96509.0,0.0011712]
[1734849121763,0.01939278,96510.0,96509.0,0.1680712]
[1734849121966,0.09164923,96514.0,96513.0,0.085]
[1734849122176,0.09164923,96514.0,96513.0,0.31424437]
[1734849122351,0.27913477,96530.0,96518.0,0.2119]
[1734849122569,0.23244614,96521.0,96520.0,0.085]
[1734849122762,0.23244614,96521.0,96520.0,0.31424431]
[1734849122943,0.23244614,96521.0,96520.0,0.3132084]
[1734849123527,0.27922047,96529.0,96528.0,0.334093]
[1734849123783,8.57e-05,96529.0,96528.0,0.4354014]
[1734849124560,0.0010857,96529.0,96528.0,0.4354014]
[1734849124919,0.0010857,96529.0,96528.0,0.5244014]
[1734849125493,0.0010857,96529.0,96528.0,0.423093]
[1734849128505,0.0010857,96529.0,96528.0,0.43339968]
[1734849134584,0.0010857,96529.0,96528.0,0.53470808]
[1734849135494,8.57e-05,96529.0,96528.0,0.53470808]
[1734849135938,0.0010857,96529.0,96528.0,0.53670808]
[1734849136108,0.0010857,96529.0,96528.0,0.53270808]
[1734849136518,0.0010857,96529.0,96528.0,0.53470808]
[1734849137033,0.0010857,96529.0,96528.0,0.53270808]
[1734849137408,8.57e-05,96529.0,96528.0,0.55153104]
[1734849137571,0.0010857,96529.0,96528.0,0.56053104]
[1734849137767,0.0010857,96529.0,96528.0,0.56453104]
[1734849137979,8.57e-05,96529.0,96528.0,0.55553104]
[1734849138178,0.0010857,96529.0,96528.0,0.56453104]
[1734849138621,8.57e-05,96529.0,96528.0,0.55553104]
[1734849139080,0.0010857,96529.0,96528.0,0.56353104]
[1734849139268,8.57e-05,96529.0,96528.0,0.55153104]
[1734849139476,8.57e-05,96529.0,96528.0,0.53070808]
[1734849139692,8.57e-05,96529.0,96528.0,0.48970808]
[1734849139831,8.57e-05,96529.0,96528.0,0.211193]
[1734849140036,8.57e-05,96529.0,96528.0,0.207193]
[1734849140503,8.57e-05,96529.0,96528.0,0.211193]
[1734849140715,0.0010857,96529.0,96528.0,0.218193]
[1734849140901,8.57e-05,96529.0,96528.0,0.207193]
[1734849141250,8.57e-05,96529.0,96528.0,0.211193]
[1734849142543,8.57e-05,96529.0,96528.0,0.208193]
[1734849142716,8.57e-05,96529.0,96528.0,0.207193]
[1734849142875,8.57e-05,96529.0,96528.0,0.210193]
[1734849143833,0.0010857,96529.0,96528.0,0.214193]
[1734849144220,8.57e-05,96529.0,96528.0,0.210193]
[1734849144388,0.0010857,96529.0,96528.0,0.217193]
[1734849144591,8.57e-05,96529.0,96528.0,0.210193]
[1734849145022,0.0010857,96529.0,96528.0,0.217193]
[1734849145640,0.0010857,96529.0,96528.0,0.214193]
[1734849146043,0.0010857,96529.0,96528.0,0.217193]
[1734849147307,8.57e-05,96529.0,96528.0,0.207193]
[1734849147711,0.0010857,96529.0,96528.0,0.217193]
[1734849149120,0.0010857,96529.0,96528.0,0.214193]
[1734849149324,0.0010857,96529.0,96528.0,0.217193]
[1734849149908,0.0010857,96529.0,96528.0,0.214193]
[1734849150334,0.0020857,96529.0,96528.0,0.224193]
[1734849152826,0.0020857,96529.0,96528.0,0.4901014]
[1734849153718,0.0020857,96529.0,96528.0,0.5367014]
[1734849154536,8.57e-05,96529.0,96528.0,0.5197014]
[1734849155029,8.57e-05,96529.0,96528.0,0.5237014]
[1734849155383,8.57e-05,96529.0,96528.0,0.5197014]
[1734849155583,0.0010857,96529.0,96528.0,0.5257014]
[1734849156177,0.0010857,96529.0,96528.0,0.54597382]
[1734849156781,0.0010857,96529.0,96528.0,0.54697382]
[1734849157405,0.0010857,96529.0,96528.0,0.53997382]
[1734849157610,8.57e-05,96529.0,96528.0,0.54097382]
[1734849157881,8.57e-05,96529.0,96528.0,0.54497382]
[1734849158039,8.57e-05,96529.0,96528.0,0.54097382]
[1734849158495,8.57e-05,96529.0,96528.0,0.54397382]
[1734849159807,8.57e-05,96529.0,96528.0,0.211193]
[1734849160100,8.57e-05,96529.0,96528.0,0.210193]
[1734849160259,8.57e-05,96529.0,96528.0,0.212193]
[1734849160658,0.01947427,96529.0,96528.0,0.210193]
[1734849161138,0.01947427,96529.0,96528.0,0.208193]
[1734849161511,0.01947427,96529.0,96528.0,0.296193]
[1734849161717,0.01947427,96529.0,96528.0,0.292193]
[1734849161918,0.01947427,96529.0,96528.0,0.295193]
[1734849162678,0.01947427,96529.0,96528.0,0.293193]
[1734849163253,0.01947427,96529.0,96528.0,0.292193]
[1734849163396,0.01947427,96529.0,96528.0,0.294193]
[1734849163579,0.01947427,96529.0,96528.0,0.298193]
[1734849164003,0.01947427,96529.0,96528.0,0.296193]
[1734849164213,0.01947427,96529.0,96528.0,0.299193]
[1734849164732,0.01947427,96529.0,96528.0,0.296193]
[1734849164941,0.01947427,96529.0,96528.0,0.292193]
[1734849165354,0.02047427,96529.0,96528.0,0.299193]
[1734849165593,0.01947427,96529.0,96528.0,0.295193]
[1734849165927,0.01947427,96529.0,96528.0,0.300193]
[1734849166149,0.01947427,96529.0,96528.0,0.295193]
[1734849166551,0.01947427,96529.0,96528.0,0.299193]
[1734849166791,0.01947427,96529.0,96528.0,0.295193]
[1734849167335,0.01947427,96529.0,96528.0,0.292193]
[1734849167691,0.01947427,96529.0,96528.0,0.294193]
[1734849168102,0.01947427,96529.0,96528.0,0.29409694]
[1734849168270,0.01947427,96529.0,96528.0,0.29209694]
[1734849168619,0.01947427,96529.0,96528.0,0.29809694]
[1734849168831,0.01947427,96529.0,96528.0,0.29409694]
[1734849169049,0.01947427,96529.0,96528.0,0.29209694]
[1734849169249,0.01947427,96529.0,96528.0,0.29609694]
[1734849169378,0.01947427,96529.0,96528.0,0.29409694]
[1734849169755,0.01947427,96529.0,96528.0,0.29809694]
[1734849183827,0.01947427,96529.0,96528.0,0.006]
[1734849187605,0.01947427,96529.0,96528.0,0.213193]
[1734849187858,0.01947427,96529.0,96528.0,0.211193]
[1734849188074,0.01947427,96529.0,96528.0,0.212193]
[1734849188316,0.01947427,96529.0,96528.0,0.208193]
[1734849188574,0.01947427,96529.0,96528.0,0.207193]
[1734849188823,0.01947427,96529.0,96528.0,0.209193]
[1734849189074,0.01947427,96529.0,96528.0,0.208193]
[1734849189328,0.01947427,96529.0,96528.0,0.5209014]
[1734849189572,0.01947427,96529.0,96528.0,0.5229014]
[1734849189814,8.57e-05,96529.0,96528.0,0.5229014]
[1734849190301,8.57e-05,96529.0,96528.0,0.5209014]
[1734849190539,8.57e-05,96529.0,96528.0,0.55201179]
[1734849190781,8.57e-05,96529.0,96528.0,0.5209014]
[1734849191234,8.57e-05,96529.0,96528.0,0.5200728]
[1734849191474,8.57e-05,96529.0,96528.0,0.72677986]
[1734849191709,8.57e-05,96529.0,96528.0,0.72877986]
[1734849191956,8.57e-05,96529.0,96528.0,1.03960394]
[1734849192196,8.57e-05,96529.0,96528.0,1.03360394]
[1734849192439,0.0010857,96529.0,96528.0,1.04160394]
[1734849192920,0.0010857,96529.0,96528.0,1.0094983]
[1734849193174,8.57e-05,96529.0,96528.0,1.0014983]
[1734849193424,0.0010857,96529.0,96528.0,1.0094983]
[1734849194141,0.0010857,96529.0,96528.0,1.0144983]
[1734849194547,0.0010857,96529.0,96528.0,0.83731342]
[1734849194752,8.57e-05,96529.0,96528.0,0.82931342]
[1734849194903,8.57e-05,96529.0,96528.0,0.83231342]
[1734849195101,7e-07,96529.0,96528.0,0.84031342]
[1734849195307,8.991e-05,96531.0,96528.0,0.78200746]
[1734849195486,8.991e-05,96531.0,96530.0,0.521589]
[1734849195737,8.991e-05,96531.0,96530.0,0.6228974]
[1734849196621,9.1e-07,96531.0,96530.0,1.2592256]
[1734849198293,9.1e-07,96531.0,96530.0,1.2692256]
[1734849199094,0.01937652,96559.0,96549.0,0.292148]
[1734849199429,0.01937652,96558.0,96549.0,0.39361943]
[1734849200091,0.01937652,96557.0,96549.0,0.39361943]
[1734849200483,0.01937652,96556.0,96549.0,0.39661943]
[1734849201091,0.01937652,96559.0,96549.0,0.39661943]
[1734849201559,0.01937652,96558.0,96549.0,0.39661943]
[1734849202200,0.01937652,96557.0,96549.0,0.39661943]
[1734849202473,0.0010857,96550.0,96549.0,0.40361943]
[1734849204569,0.0010857,96550.0,96549.0,0.41412657]
[1734849207215,0.0010857,96550.0,96549.0,0.53722657]
[1734849208181,7e-07,96550.0,96549.0,0.78422657]
[1734849208621,0.01937652,96574.0,96559.0,0.085]
[1734849208825,0.01937652,96574.0,96559.0,0.4741354]
[1734849209020,0.01937652,96573.0,96559.0,0.4741354]
[1734849209443,0.09286479,96579.0,96559.0,0.4741354]
[1734849209847,0.01937652,96582.0,96559.0,0.4741354]
[1734849210268,0.0816,96583.0,96559.0,0.4751354]
[1734849210591,0.0816,96583.0,96559.0,0.4741354]
[1734849211521,0.0472,96585.0,96559.0,0.6261354]
[1734849211721,8.57e-05,96588.0,96559.0,0.6261354]
[1734849212073,8.57e-05,96588.0,96559.0,0.6311354]
[1734849212301,8.57e-05,96588.0,96559.0,0.64155122]
[1734849212657,7e-07,96560.0,96559.0,1.32467942]
[1734849213485,8.57e-05,96588.0,96565.0,0.622814]
[1734849213486,4e-07,96566.0,96565.0,0.622814]
[1734849213677,8.57e-05,96588.0,96575.0,0.085]
[1734849213888,8.57e-05,96588.0,96575.0,0.62513554]
[1734849214083,8.57e-05,96588.0,96575.0,0.6241004]
[1734849215805,8.57e-05,96588.0,96575.0,0.6271004]
[1734849216617,8.57e-05,96588.0,96575.0,0.6331004]
[1734849216991,8.57e-05,96588.0,96575.0,0.6241004]
[1734849217402,8.57e-05,96588.0,96575.0,0.6311004]
[1734849217955,8.57e-05,96588.0,96575.0,0.6281004]
[1734849218159,8.57e-05,96588.0,96575.0,0.6291004]
[1734849219317,8.57e-05,96588.0,96575.0,0.63925501]
[1734849225268,8.57e-05,96588.0,96575.0,0.68585501]
[1734849226508,8.57e-05,96588.0,96575.0,0.68085501]
[1734849226925,7e-07,96576.0,96575.0,0.78585501]
[1734849227368,8.57e-05,96588.0,96587.0,0.370967]
[1734849227579,8.57e-05,96588.0,96587.0,0.4722754]
[1734849228791,8.57e-05,96588.0,96587.0,0.4782754]
[1734849229589,8.57e-05,96588.0,96587.0,0.4722754]
[1734849229809,8.57e-05,96588.0,96587.0,0.4792754]
[1734849230362,8.57e-05,96588.0,96587.0,0.4762754]
[1734849230586,8.57e-05,96588.0,96587.0,0.4782754]
[1734849231140,8.57e-05,96588.0,96587.0,0.48677176]
[1734849231343,8.57e-05,96588.0,96587.0,0.48877176]
[1734849231544,8.57e-05,96588.0,96587.0,0.48477176]
[1734849231908,8.57e-05,96588.0,96587.0,0.48877176]
[1734849232286,8.57e-05,96588.0,96587.0,0.48477176]
[1734849232426,8.57e-05,96588.0,96587.0,0.48877176]
[1734849232630,8.57e-05,96588.0,96587.0,0.48677176]
[1734849232869,8.57e-05,96588.0,96587.0,0.48877176]
[1734849236200,8.57e-05,96588.0,96587.0,0.40787176]
[1734849236400,8.57e-05,96588.0,96587.0,0.40387176]
[1734849236807,8.57e-05,96588.0,96587.0,0.40787176]
[1734849237205,8.57e-05,96588.0,96587.0,0.40687176]
[1734849237388,8.57e-05,96588.0,96587.0,0.40787176]
[1734849237958,8.57e-05,96588.0,96587.0,0.40487176]
[1734849238407,8.57e-05,96588.0,96587.0,0.40887176]
[1734849238625,8.57e-05,96588.0,96587.0,0.40487176]
[1734849238830,8.57e-05,96588.0,96587.0,0.40387176]
[1734849239040,8.57e-05,96588.0,96587.0,0.40587176]
[1734849242961,8.57e-05,96588.0,96587.0,0.55587176]
[1734849243108,8.57e-05,96588.0,96587.0,0.78057176]
[1734849243311,8.57e-05,96588.0,96587.0,0.81257147]
[1734849246868,8.57e-05,96588.0,96587.0,1.34889967]
[1734849247267,7e-07,96588.0,96587.0,1.34889967]
[1734849248141,3e-07,96589.0,96588.0,0.285]
[1734849248269,3e-07,96589.0,96588.0,0.64770811]
[1734849249220,3e-07,96589.0,96588.0,1.18403631]
[1734849249432,3e-07,96589.0,96588.0,1.18503631]
[1734849249721,3e-07,96589.0,96588.0,1.20871488]
[1734849249961,3e-07,96589.0,96588.0,1.02271488]
[1734849250155,3e-07,96589.0,96588.0,1.20771488]
[1734849250359,3e-07,96589.0,96588.0,1.20971488]
[1734849251064,3e-07,96589.0,96588.0,1.20671488]
[1734849251272,3e-07,96589.0,96588.0,1.21071488]
[1734849253725,0.0780003,96589.0,96588.0,0.006]
[1734849253912,0.1273003,96589.0,96588.0,0.006]
[1734849254334,0.1466921,96589.0,96588.0,0.006]
[1734849254545,0.1466921,96589.0,96588.0,0.002]
[1734849254742,0.1466921,96589.0,96588.0,0.207065]
[1734849254942,0.1466921,96589.0,96588.0,0.213065]
[1734849255077,0.1466921,96589.0,96588.0,0.209065]
[1734849255428,0.1466921,96589.0,96588.0,0.207065]
[1734849255625,0.1466921,96589.0,96588.0,0.211065]
[1734849255850,0.1466921,96589.0,96588.0,0.213065]
[1734849256170,0.1466921,96589.0,96588.0,0.211065]
[1734849256595,0.1466921,96589.0,96588.0,0.212065]
[1734849257442,0.1466921,96589.0,96588.0,0.208065]
[1734849257647,0.1466921,96589.0,96588.0,0.211065]
[1734849257852,0.1466921,96589.0,96588.0,0.210065]
[1734849258007,0.1466921,96589.0,96588.0,0.207065]
[1734849258206,0.1466921,96589.0,96588.0,0.208065]
[1734849258410,0.1466921,96589.0,96588.0,0.210065]
[1734849258631,0.1466921,96589.0,96588.0,0.209065]
[1734849258853,0.1466921,96589.0,96588.0,0.001]
[1734849258996,0.1466921,96589.0,96588.0,0.003]
[1734849260496,0.1466921,96589.0,96588.0,0.001]
[1734849260945,0.1466921,96589.0,96588.0,0.002]
[1734849261117,0.1466921,96589.0,96588.0,0.001]
[1734849261750,0.1466921,96589.0,96578.0,0.15]
[1734849261950,0.023,96586.0,96576.0,0.0001712]
[1734849262145,0.023,96579.0,96576.0,0.0001712]
[1734849262328,0.356688,96577.0,96576.0,0.0001712]
[1734849262524,0.4773597,96577.0,96576.0,0.0001712]
[1734849264186,0.1689633,96577.0,96576.0,0.0001712]
[1734849264446,0.1459633,96577.0,96576.0,0.0001712]
[1734849264963,0.1459633,96577.0,96576.0,0.0011712]
[1734849265434,0.1459633,96577.0,96576.0,0.0001712]
[1734849266245,0.1266,96577.0,96576.0,0.0001712]
[1734849266648,0.045,96577.0,96576.0,0.0001712]
[1734849266845,0.0193633,96580.0,96577.0,0.207088]
[1734849267060,0.09286211,96584.0,96577.0,0.207088]
[1734849267409,0.09286211,96584.0,96577.0,0.414176]
[1734849267610,0.09286211,96584.0,96583.0,0.207075]
[1734849268016,0.0193633,96588.0,96583.0,0.207075]
[1734849268217,0.0193633,96588.0,96584.0,0.207072]
[1734849268485,0.0450003,96589.0,96585.0,0.20707]
[1734849269108,0.0450003,96589.0,96585.0,0.41414]
[1734849269308,3e-07,96589.0,96585.0,0.41414]
[1734849271435,3e-07,96589.0,96585.0,0.20707]
[1734849273415,3e-07,96589.0,96585.0,0.2072412]
[1734849273967,3e-07,96589.0,96585.0,0.1922412]
[1734849275288,3e-07,96589.0,96585.0,0.3993112]
[1734849277228,3e-07,96589.0,96585.0,0.3943112]
[1734849280954,3e-07,96589.0,96585.0,0.3953112]
[1734849281259,0.0193633,96588.0,96585.0,0.3953112]
[1734849281609,0.0193633,96587.0,96585.0,0.3953112]
[1734849282357,0.0193633,96586.0,96585.0,0.3953112]
[1734849283409,0.0193633,96586.0,96585.0,0.3963112]
[1734849283609,0.0193633,96586.0,96585.0,0.3953112]
[1734849284187,0.0193633,96586.0,96585.0,0.3973112]
[1734849285013,0.0193633,96586.0,96585.0,0.3963112]
[1734849285421,0.0193633,96586.0,96585.0,0.3973112]
[1734849286440,0.0193633,96586.0,96585.0,0.0031712]
[1734849287797,0.0193633,96586.0,96585.0,0.0011712]
[1734849287969,0.0193633,96586.0,96585.0,0.0021712]
[1734849288170,0.0193633,96586.0,96585.0,0.0011712]
[1734849290052,0.0193633,96586.0,96585.0,0.0001712]
[1734849290287,0.0193633,96586.0,96585.0,0.0041712]
[1734849292231,0.0193633,96586.0,96585.0,0.0031712]
[1734849292574,0.0193633,96586.0,96585.0,0.01472463]
[1734849292930,0.0193633,96586.0,96585.0,0.01372463]
[1734849293333,0.0193633,96586.0,96585.0,0.01072463]
[1734849293924,0.0193633,96586.0,96585.0,0.01372463]
[1734849294103,0.0193633,96586.0,96585.0,0.01572463]
[1734849294471,0.0193633,96586.0,96585.0,0.01272463]
[1734849294886,0.0193633,96586.0,96585.0,0.01672463]
[1734849295499,0.0193633,96586.0,96585.0,0.0061712]
[1734849295836,0.0193633,96586.0,96585.0,0.0041712]
[1734849296320,0.0193633,96586.0,96585.0,0.0061712]
[1734849296677,0.019449,96586.0,96585.0,0.0001712]
[1734849297301,0.019449,96586.0,96585.0,0.0011712]
[1734849297622,0.019449,96586.0,96585.0,0.0031712]
[1734849297821,0.095549,96586.0,96585.0,0.0031712]
[1734849298023,0.095549,96586.0,96585.0,0.0011712]
[1734849298230,0.095549,96586.0,96585.0,0.0031712]
[1734849299526,0.095549,96586.0,96585.0,0.0021712]
[1734849299728,0.095549,96586.0,96585.0,0.0001712]
[1734849299932,0.095549,96586.0,96585.0,0.0021712]
[1734849300300,0.095549,96586.0,96585.0,0.0011712]
[1734849300831,0.095549,96586.0,96585.0,0.0001712]
[1734849302754,0.2462574,96586.0,96585.0,0.0001712]
[1734849302961,0.2692574,96586.0,96585.0,0.0001712]
[1734849305501,0.62313778,96586.0,96585.0,0.0001712]
[1734849314541,0.63813778,96586.0,96585.0,0.0001712]
[1734849315291,0.78813778,96586.0,96585.0,0.0001712]
[1734849316771,0.414164,96580.0,96559.0,0.0001712]
[1734849316986,0.1243084,96579.0,96559.0,0.0001712]
[1734849317339,0.0193633,96578.0,96559.0,0.0001712]
[1734849317541,0.1206717,96577.0,96559.0,0.0001712]
[1734849317781,0.1436717,96577.0,96559.0,0.2072972]
[1734849318489,0.71976089,96577.0,96559.0,0.2072972]
[1734849318690,0.71976089,96577.0,96565.0,0.207112]
[1734849318691,0.69676089,96577.0,96565.0,0.207112]
[1734849318832,0.69676089,96577.0,96565.0,0.282312]
[1734849318833,0.59545249,96577.0,96565.0,0.282312]
[1734849319671,0.59645249,96577.0,96565.0,0.282312]
[1734849320110,0.36389695,96577.0,96565.0,0.282312]
[1734849320290,0.36289695,96577.0,96565.0,0.282312]
[1734849320510,0.36389695,96577.0,96565.0,0.207112]
[1734849320790,0.36289695,96577.0,96565.0,0.207112]
[1734849321226,0.67229335,96577.0,96560.0,0.207124]
[1734849321425,0.67129335,96577.0,96560.0,0.207124]
[1734849321653,0.3277597,96577.0,96560.0,0.207124]
[1734849321832,0.3287597,96577.0,96560.0,0.207124]
[1734849321999,0.3277597,96577.0,96560.0,0.207124]
[1734849322207,0.3287597,96577.0,96560.0,0.207124]
[1734849322411,0.3297597,96577.0,96560.0,0.207124]
[1734849322615,0.3287597,96577.0,96560.0,0.207124]
[1734849323027,0.3297597,96577.0,96560.0,0.207124]
[1734849323449,0.3287597,96577.0,96560.0,0.207124]
[1734849323653,0.3277597,96577.0,96560.0,0.207124]
[1734849323966,0.3297597,96577.0,96560.0,0.207124]
[1734849324255,0.3287597,96577.0,96560.0,0.207124]
[1734849324605,0.3297597,96577.0,96560.0,0.207124]
[1734849325210,0.3287597,96577.0,96560.0,0.207124]
[1734849325414,0.69497166,96577.0,96559.0,0.0753712]
[1734849325613,0.77427166,96577.0,96559.0,0.0001712]
[1734849326560,0.75490836,96577.0,96559.0,0.0001712]
[1734849331217,0.75490836,96577.0,96561.0,0.207122]
[1734849331692,0.75490836,96577.0,96559.0,0.0001712]
[1734849331900,0.67660836,96577.0,96559.0,0.0001712]
[1734849333651,0.67660836,96577.0,96566.0,0.0815]
[1734849334934,0.3333964,96577.0,96566.0,0.0815]
[1734849335679,0.3333964,96577.0,96560.0,0.288623]
[1734849337605,0.67660565,96577.0,96560.0,0.288623]
[1734849338417,0.86252782,96577.0,96560.0,0.288623]
[1734849339730,0.67660565,96577.0,96560.0,0.288623]
[1734849341782,0.46951765,96577.0,96565.0,0.207112]
[1734849341991,0.44651765,96577.0,96565.0,0.207112]
[1734849342399,0.67907319,96577.0,96565.0,0.207112]
[1734849343601,0.44651765,96577.0,96565.0,0.207112]
[1734849346498,0.44651765,96577.0,96563.0,0.01016234]
[1734849346499,0.44651765,96577.0,96560.0,0.0815]
[1734849347148,0.44651765,96577.0,96562.0,0.207118]
[1734849349811,0.44651765,96577.0,96562.0,0.414238]
[1734849350455,0.44651765,96577.0,96562.0,0.207118]
[1734849352765,0.34520925,96577.0,96576.0,0.1629712]
[1734849352940,0.34520925,96577.0,96576.0,0.46923982]
[1734849353566,0.03546425,96577.0,96576.0,0.66923982]
[1734849353768,0.05726665,96582.0,96581.0,0.435]
[1734849354066,8.57e-05,96586.0,96584.0,0.435]
[1734849354322,8.57e-05,96586.0,96584.0,0.5363084]
[1734849354529,4e-07,96586.0,96585.0,0.642071]
[1734849354720,5.475e-05,96586.0,96585.0,0.7433794]
[1734849354880,5.475e-05,96586.0,96585.0,0.74898374]
[1734849356006,5.475e-05,96586.0,96585.0,0.75198374]
[1734849356207,7.5e-07,96586.0,96585.0,0.75198374]
[1734849357278,7.5e-07,96586.0,96585.0,1.32216082]
[1734849358546,7.5e-07,96586.0,96585.0,1.32516082]
[1734849358747,7.5e-07,96586.0,96585.0,1.0940468]
[1734849359450,7.5e-07,96586.0,96585.0,1.0890468]
[1734849359655,7.5e-07,96586.0,96585.0,1.0940468]
[1734849360202,7.5e-07,96586.0,96585.0,0.76298374]
[1734849360319,7.5e-07,96586.0,96585.0,0.75398374]
[1734849360733,7.5e-07,96586.0,96585.0,0.76298374]
[1734849360940,7.5e-07,96586.0,96585.0,0.74898374]
[1734849361136,7.5e-07,96586.0,96585.0,0.75798374]
[1734849361382,7.5e-07,96586.0,96585.0,0.76298374]
[1734849361776,7.5e-07,96586.0,96585.0,0.75798374]
[1734849361992,7.5e-07,96586.0,96585.0,0.74898374]